[Event "FIDE CB Open 2022"]
[Site "Ceske Budejovice"]
[Date "2022.07.07"]
[Round "7.40"]
[White "Toman, Jan"]
[Black "Travnicek, Jaroslav"]
[Result "1-0"]
[ECO "A32"]
[WhiteElo "2142"]
[BlackElo "1730"]
[Annotator "NA RC"]
[PlyCount "53"]
[EventDate "2022.07.01"]
[EventType "swiss"]
[EventCountry "CZE"]
[SourceTitle "playchess.com"]
[Source "ChessBase"]
[SourceQuality "1"]
[TimeControl "40/5400+30:1800+30"]

1. Nf3 {[%emt 0:02:39]} d5 {[%emt 0:00:16]} 2. c4 {[%emt 0:00:08]} e6 {[%emt 0:00:17]} 3. d4 {[%emt 0:00:13]} Nf6 {[%emt 0:00:25]} 4. g3 {[%emt 0:00:22]} c5 {[%emt 0:00:19]} 5. cxd5 {[%emt 0:05:10]} Nxd5 {[%emt 0:01:56]} 6. Bg2 {[%emt 0:03:03]} cxd4 {[%emt 0:02:35]} 7. Nxd4 {[%emt 0:00:26]} Bb4+ {[%emt 0:01:11]} 8. Bd2 {[%emt 0:00:59]} Bxd2+ {[%emt 0:00:58]} 9. Qxd2 {[%emt 0:00:21]} O-O {[%emt 0:01:34]} 10. O-O {[%emt 0:00:08]} Nc6 {[%emt 0:11:15]} 11. Nxc6 {[%emt 0:01:08]} bxc6 {[%emt 0:00:03]} 12. Rc1 {[%emt 0:02:32]} Qb6 {[%emt 0:02:11]} 13. Nc3 {[%emt 0:01:31]} Ba6 {[%emt 0:01:20]} 14. Bf3 {[%emt 0:02:15]} Rfd8 {[%emt 0:07:18]} 15. Na4 {[%emt 0:02:02]} Qc7 {[%emt 0:08:56]} 16. Nc5 {[%emt 0:02:46]} Bb7 {[%emt 0:01:52]} 17. Qc2 {[%emt 0:12:32]} Rac8 {[%emt 0:02:32]} 18. Qa4 {[%emt 0:03:18]} Ba8 {[%emt 0:02:05]} 19. Rc2 {[%emt 0:00:30]} Qb8 {[%emt 0:04:44]} 20. Rc3 {[%emt 0:01:57]} Nb4 {[%emt 0:03:05]} 21. Rb3 {[%emt 0:00:22]} Nd5 {[%emt 0:02:42]} 22. Rc1 {[%emt 0:02:36]} Qc7 {[%emt 0:02:53]} 23. Ra3 {[%emt 0:00:30]} Nb6 {[%emt 0:04:58]} 24. Qxa7 {[%emt 0:01:30]} Qxa7 {[%emt 0:01:09]} 25. Rxa7 {[%emt 0:00:05]} Rd2 {[%emt 0:01:13]} 26. Nd3 {[%emt 0:00:35]} Rd8 {[%emt 0:06:53]} 27. Kf1 {[%emt 0:00:19]} 1-0

[Event "FIDE CB Open 2022"]
[Site "Ceske Budejovice"]
[Date "2022.07.07"]
[Round "7.41"]
[White "Nagyova, Daniela"]
[Black "Zeleny, Tomas"]
[Result "0-1"]
[ECO "B43"]
[WhiteElo "1712"]
[BlackElo "2136"]
[Annotator "RC"]
[PlyCount "111"]
[EventDate "2022.07.01"]
[EventType "swiss"]
[EventCountry "CZE"]
[SourceTitle "playchess.com"]
[Source "ChessBase"]
[SourceQuality "1"]
[TimeControl "40/5400+30:1800+30"]

1. e4 {[%emt 0:00:06]} c5 {[%emt 0:00:14]} 2. Nf3 {[%emt 0:00:16]} e6 {[%emt 0:00:06]} 3. d4 {[%emt 0:00:13]} cxd4 {[%emt 0:00:12]} 4. Nxd4 {[%emt 0:00:07]} a6 {[%emt 0:00:05]} 5. Nc3 {[%emt 0:00:42]} Qc7 {[%emt 0:00:13]} 6. Bd3 {[%emt 0:00:33]} Nf6 {[%emt 0:00:09]} 7. O-O {[%emt 0:01:38]} b5 {[%emt 0:00:16]} 8. Qe2 {[%emt 0:02:46]} d6 {[%emt 0:00:21]} 9. f4 {[%emt 0:02:34]} Be7 {[%emt 0:00:56]} 10. e5 {[%emt 0:02:51]} Nfd7 {[%emt 0:04:47]} 11. exd6 {[%emt 0:20:41]} Bxd6 {[%emt 0:06:42]} 12. Kh1 {[%emt 0:11:05]} Nf6 {[%emt 0:02:39]} 13. Nf5 {[%emt 0:04:33]} Bf8 {[%emt 0:07:34]} 14. Bxb5+ {[%emt 0:10:48]} axb5 {[%emt 0:08:26]} 15. Nxb5 {[%emt 0:00:04]} Qc6 {[%emt 0:02:51]} 16. Nfd4 {[%emt 0:01:42]} Qb6 {[%emt 0:09:11]} 17. f5 {[%emt 0:06:02]} Bc5 {[%emt 0:01:03]} 18. Bf4 {[%emt 0:09:42]} O-O {[%emt 0:10:41]} 19. fxe6 {[%emt 0:05:20]} Bxd4 {[%emt 0:11:00]} 20. e7 {[%emt 0:03:06]} Re8 {[%emt 0:00:21]} 21. Nc7 {[%emt 0:00:30]} Ra7 {[%emt 0:01:00]} 22. Nxe8 {[%emt 0:01:25]} Nxe8 {[%emt 0:00:16]} 23. Bg5 {[%emt 0:05:24]} Be6 {[%emt 0:16:22]} 24. c3 {[%emt 0:01:11]} Bc5 {[%emt 0:01:07]} 25. b4 {[%emt 0:01:04]} Bxe7 {[%emt 0:00:31]} 26. Be3 {[%emt 0:00:33]} Qc7 {[%emt 0:00:45]} 27. Bxa7 {[%emt 0:00:14]} Qxa7 {[%emt 0:00:08]} 28. a4 {[%emt 0:02:40]} Qc7 {[%emt 0:00:38]} 29. Qe3 {[%emt 0:01:36]} Nf6 {[%emt 0:01:09]} 30. Ra3 {[%emt 0:01:47]} Ng4 {[%emt 0:05:20]} 31. Qg1 {[%emt 0:00:14]} Bd6 {[%emt 0:01:56]} 32. h3 {[%emt 0:00:07]} Nf6 {[%emt 0:00:15]} 33. a5 {[%emt 0:01:26]} Ne4 {[%emt 0:00:48]} 34. Rf3 {[%emt 0:02:20]} Na6 {[%emt 0:04:00]} 35. Qe3 {[%emt 0:00:54]} Ng3+ {[%emt 0:01:40]} 36. Rxg3 {[%emt 0:01:07]} Bxg3 {[%emt 0:00:07]} 37. b5 {[%emt 0:00:20]} Bd6 {[%emt 0:02:01]} 38. Ra1 {[%emt 0:00:05]} Qc5 {[%emt 0:01:30]} 39. Qd3 {[%emt 0:01:02]} Bc4 {[%emt 0:00:45]} 40. Qf3 {[%emt 0:00:59]} Qxb5 {[%emt 0:01:11]} 41. Qe3 {[%emt 0:03:21]} Qe5 {[%emt 0:05:19]} 42. Qxe5 {[%emt 0:01:10]} Bxe5 {[%emt 0:00:31]} 43. Ra3 {[%emt 0:00:05]} Kf8 {[%emt 0:00:39]} 44. Kg1 {[%emt 0:00:24]} Bd6 {[%emt 0:01:20]} 45. Ra1 {[%emt 0:00:42]} Bc5+ {[%emt 0:00:31]} 46. Kh2 {[%emt 0:00:02]} f5 {[%emt 0:01:43]} 47. Kg3 {[%emt 0:02:18]} Kf7 {[%emt 0:00:37]} 48. Rb1 {[%emt 0:02:00]} Bd5 {[%emt 0:03:39]} 49. Ra1 {[%emt 0:02:49]} Kf6 {[%emt 0:00:47]} 50. Ra4 {[%emt 0:01:42]} Ke5 {[%emt 0:05:18]} 51. Kh2 {[%emt 0:02:32]} f4 {[%emt 0:01:15]} 52. Kh1 {[%emt 0:00:30]} Be4 {[%emt 0:01:59]} 53. Ra1 {[%emt 0:03:11]} g5 {[%emt 0:02:04]} 54. Rd1 {[%emt 0:01:29]} f3 {[%emt 0:00:22]} 55. g3 {[%emt 0:01:33]} f2+ {[%emt 0:00:54]} 56. Kh2 {[%emt 0:00:17]} 0-1

[Event "FIDE CB Open 2022"]
[Site "Ceske Budejovice"]
[Date "2022.07.07"]
[Round "7.42"]
[White "Pavlis, Matej"]
[Black "Kotleska, Roman"]
[Result "1-0"]
[ECO "D78"]
[WhiteElo "1625"]
[BlackElo "1863"]
[Annotator "NA RC COMBH"]
[PlyCount "167"]
[EventDate "2022.07.01"]
[EventType "swiss"]
[EventCountry "CZE"]
[SourceTitle "playchess.com"]
[Source "ChessBase"]
[SourceQuality "1"]
[TimeControl "40/5400+30:1800+30"]

1. d4 {[%emt 0:00:03]} Nf6 {[%emt 0:00:52]} 2. c4 {[%emt 0:00:06]} g6 {[%emt 0:02:08]} 3. Nf3 {[%emt 0:00:47]} Bg7 {[%emt 0:00:02]} 4. g3 {[%emt 0:01:07]} d5 {[%emt 0:00:04]} 5. Bg2 {[%emt 0:01:13]} c6 {[%emt 0:01:49]} 6. O-O {[%emt 0:02:14]} O-O {[%emt 0:01:36]} 7. Nc3 {[%emt 0:01:49]} Nbd7 {[%emt 0:01:43]} 8. Qc2 {[%emt 0:03:31]} Nb6 {[%emt 0:06:46]} 9. cxd5 {[%emt 0:05:31]} cxd5 {[%emt 0:00:57]} 10. Ne5 {[%emt 0:04:52]} Be6 {[%emt 0:04:13]} 11. b3 {[%emt 0:07:37]} Rc8 {[%emt 0:01:44]} 12. Bb2 {[%emt 0:01:18]} Bf5 {[%emt 0:06:14]} 13. Qd2 {[%emt 0:02:58]} Ne4 {[%emt 0:10:44]} 14. Qe3 {[%emt 0:11:43]} Nf6 {[%emt 0:11:45]} 15. Rac1 {[%emt 0:05:16]} Ng4 {[%emt 0:02:30]} 16. Nxg4 {[%emt 0:02:35]} Bxg4 {[%emt 0:00:02]} 17. Qg5 {[%emt 0:03:41]} Qd7 {[%emt 0:17:17]} 18. Nxd5 {[%emt 0:15:33]} Nxd5 {[%emt 0:00:44]} 19. Qxd5 {[%emt 0:01:32]} Qxd5 {[%emt 0:02:38]} 20. Bxd5 {[%emt 0:00:07]} Bxe2 {[%emt 0:01:08]} 21. Bxb7 {[%emt 0:01:38]} Rb8 {[%emt 0:04:34]} 22. Rfe1 {[%emt 0:00:12]} Rxb7 {[%emt 0:00:14]} 23. Rxe2 {[%emt 0:00:02]} Rd8 {[%emt 0:00:31]} 24. Rc4 {[%emt 0:00:31]} e6 {[%emt 0:01:32]} 25. Rec2 {[%emt 0:02:55]} Kf8 {[%emt 0:02:19]} 26. Rc7 {[%emt 0:02:23]} Rd7 {[%emt 0:01:50]} 27. Rxb7 {[%emt 0:04:12]} Rxb7 {[%emt 0:00:03]} 28. f4 {[%emt 0:00:10]} Ke7 {[%emt 0:02:11]} 29. Kf2 {[%emt 0:00:27]} Kd6 {[%emt 0:05:07]} 30. Ke3 {[%emt 0:01:00]} Rb5 {[%emt 0:02:37]} 31. Rc4 {[%emt 0:04:24]} h5 {[%emt 0:00:56]} 32. Rc8 {[%emt 0:01:46]} Rb7 {[%emt 0:03:12]} 33. Ba3+ {[%emt 0:03:22]} Kd7 {[%emt 0:00:13]} 34. Rg8 {[%emt 0:01:16]} Bf6 {[%emt 0:00:31]} 35. Rf8 {[%emt 0:00:37]} Kc6 {[%emt 0:00:24]} 36. Bc5 {[%emt 0:00:13]} Kb5 {[%emt 0:03:41]} 37. Kd3 {[%emt 0:00:34]} Ka6 {[%emt 0:02:13]} 38. Rc8 {[%emt 0:01:42]} Rd7 {[%emt 0:00:20]} 39. Kc4 {[%emt 0:00:12]} Kb7 {[%emt 0:00:39]} 40. Re8 {[%emt 0:01:30]} Rd5 {[%emt 0:01:28]} 41. Rf8 {[%emt 0:31:24]} Rd7 {[%emt 0:30:06]} 42. b4 {[%emt 0:01:53]} Bd8 {[%emt 0:00:00]} 43. a4 {[%emt 0:00:00]} a6 {[%emt 0:00:00]} 44. a5 {[%emt 0:00:00]} Kc6 {[%emt 0:00:00]} 45. h3 {[%emt 0:00:00]} Kb7 {[%emt 0:00:00]} 46. b5 {[%emt 0:00:00]} axb5+ {[%emt 0:00:00]} 47. Kxb5 {[%emt 0:00:00]} Bxa5 {[%emt 0:00:00]} 48. Kxa5 {[%emt 0:00:00]} Kc6 {[%emt 0:00:00]} 49. Kb4 {[%emt 0:00:00]} Kd5 {[%emt 0:00:00]} 50. g4 {[%emt 0:00:00]} hxg4 {[%emt 0:00:00]} 51. hxg4 {[%emt 0:00:00]} Ke4 {[%emt 0:00:00]} 52. f5 {[%emt 0:00:00]} gxf5 {[%emt 0:00:00]} 53. gxf5 {[%emt 0:00:00]} Kxf5 {[%emt 0:00:00]} 54. Kc4 {[%emt 0:00:00]} Ke4 {[%emt 0:00:00]} 55. Re8 {[%emt 0:00:00]} Rd5 {[%emt 0:00:00]} 56. Re7 {[%emt 0:00:00]} Rf5 {[%emt 0:00:00]} 57. Bd6 {[%emt 0:00:00]} Kf3 {[%emt 0:02:24]} 58. Kd3 {[%emt 0:00:00]} Kg4 {[%emt 0:00:33]} 59. Re8 {[%emt 0:00:00]} Kg5 {[%emt 0:02:44]} 60. Ke4 {[%emt 0:00:00]} Kg6 {[%emt 0:01:15]} 61. Rg8+ {[%emt 0:00:00]} Kf6 {[%emt 0:00:46]} 62. Rg4 {[%emt 0:00:00]} Rd5 {[%emt 0:00:56]} 63. Be5+ {[%emt 0:00:00]} Ke7 {[%emt 0:00:18]} 64. Rg7 {[%emt 0:00:00]} Kf8 {[%emt 0:00:41]} 65. Rh7 {[%emt 0:00:00]} Ke7 {[%emt 0:00:28]} 66. Kf4 {[%emt 0:00:00]} Rb5 {[%emt 0:02:39]} 67. Kg5 {[%emt 0:00:00]} Rb1 {[%emt 0:00:21]} 68. Bf6+ {[%emt 0:00:00]} Ke8 {[%emt 0:00:16]} 69. Rh8+ {[%emt 0:00:00]} Kd7 {[%emt 0:00:07]} 70. Kh6 {[%emt 0:00:16]} Rg1 {[%emt 0:00:51]} 71. Kh7 {[%emt 0:03:34]} Kd6 {[%emt 0:01:11]} 72. Rg8 {[%emt 0:01:48]} Rf1 {[%emt 0:00:22]} 73. Kg7 {[%emt 0:00:03]} Kd5 {[%emt 0:00:53]} 74. Kxf7 {[%emt 0:00:09]} Re1 {[%emt 0:00:31]} 75. Rd8+ {[%emt 0:00:22]} Kc6 {[%emt 0:00:18]} 76. Be5 {[%emt 0:00:04]} Rh1 {[%emt 0:00:34]} 77. Kxe6 {[%emt 0:00:16]} Rh6+ {[%emt 0:00:12]} 78. Bf6 {[%emt 0:00:04]} Kc7 {[%emt 0:00:27]} 79. Rh8 {[%emt 0:00:05]} Rg6 {[%emt 0:00:17]} 80. d5 {[%emt 0:00:05]} Rg2 {[%emt 0:00:20]} 81. d6+ {[%emt 0:00:07]} Kc6 {[%emt 0:00:14]} 82. d7 {[%emt 0:00:23]} Re2+ {[%emt 0:00:21]} 83. Be5 {[%emt 0:00:06]} Rxe5+ {[%emt 0:00:30]} 84. Kxe5 {[%emt 0:00:09]} 1-0

[Event "FIDE CB Open 2022"]
[Site "Ceske Budejovice"]
[Date "2022.07.07"]
[Round "7.43"]
[White "Rosol, Philip"]
[Black "Nejdl, Eduard"]
[Result "1-0"]
[ECO "A91"]
[WhiteElo "1741"]
[BlackElo "1951"]
[Annotator "TA"]
[PlyCount "71"]
[EventDate "2022.07.01"]
[EventType "swiss"]
[EventCountry "CZE"]
[SourceTitle "playchess.com"]
[Source "ChessBase"]
[SourceQuality "1"]
[TimeControl "40/5400+30:1800+30"]

{[%evp 14,71,42,39,71,82,79,75,106,102,114,110,104,91,83,92,102,94,97,80,128,22,16,24,51,60,81,75,88,66,86,70,81,81,104,88,383,0,81,90,90,90,68,71,157,135,156,151,144,136,697,690,695,687,683,653,896,876,851,827]} 1. d4 {[%emt 0:00:02]} f5 {[%emt 0:02:09]} 2. g3 {[%emt 0:00:09]} e6 {[%emt 0:00:24]} 3. Bg2 {[%emt 0:00:14]} d5 {[%emt 0:00:24]} 4. c4 {[%emt 0:01:17]} c6 {[%emt 0:00:10]} 5. Nh3 {[%emt 0:02:15]} Nf6 {[%emt 0:00:28]} 6. O-O {[%emt 0:00:28]} Be7 {[%emt 0:00:18]} 7. Qc2 {[%emt 0:01:51]} O-O {[%emt 0:00:26]} 8. Nd2 {[%emt 0:03:42]} Ng4 {[%emt 0:07:44] A91: Classical Dutch: Early Deviations.} 9. Nf3 {[%emt 0:04:18]} Qe8 {[%emt 0:04:21]} 10. Nf4 {[%emt 0:14:02] [#]} Bf6 $146 {[%emt 0:03:27] White is better.} ({Predecessor:} 10... g5 11. Nd3 h6 12. b4 Bd6 13. e3 Nf6 14. a4 Ne4 15. b5 Nd7 16. Ba3 Qe7 17. Bxd6 Nxd6 {1-0 (39) Livner,A (2364)-Nettleton,C (1834) Gatwick 2011}) 11. Nd3 {[%emt 0:09:33]} Bd8 {[%emt 0:08:33]} 12. Bf4 {[%emt 0:07:30]} Nd7 {[%emt 0:04:01]} 13. h3 {[%emt 0:12:14]} Ngf6 {[%emt 0:00:38]} 14. Bd6 {[%emt 0:03:56]} Be7 {[%emt 0:01:47]} 15. Bxe7 {[%emt 0:00:57]} Qxe7 {[%emt 0:00:22]} 16. c5 {[%emt 0:05:13]} Kh8 {[%emt 0:01:34]} (16... Ne4 $142) 17. Nde5 {[%emt 0:08:01]} (17. b4 $16) 17... Nxe5 $11 {[%emt 0:03:15]} 18. Nxe5 {[%emt 0:01:10]} Bd7 {[%emt 0:02:33]} 19. b4 {[%emt 0:02:49][%cal Bb2b4,Bb4b5,Bb5c6][%mdl 32]} Rfc8 {[%emt 0:05:41]} 20. a4 {[%emt 0:01:24]} Be8 {[%emt 0:01:10]} 21. f4 {[%emt 0:01:24]} Bh5 {[%emt 0:14:03]} 22. Rfb1 {[%emt 0:04:51]} Qd8 {[%emt 0:08:11]} 23. Qb2 {[%emt 0:02:53]} Rab8 {[%emt 0:00:30]} 24. b5 {[%emt 0:00:41]} b6 $2 {[%emt 0:01:19][%mdl 8192] [#]} (24... Be8 $16) 25. Ra3 $2 {[%emt 0:03:34]} ({White must play} 25. Nxc6 $18 Rxc6 26. bxc6) 25... Be8 {[%emt 0:10:48]} (25... bxc5 $11 {keeps the balance.} 26. Qa1 Be8) 26. bxc6 $16 {[%emt 0:00:03]} bxc5 {[%emt 0:00:30]} 27. Rb3 {[%emt 0:00:30]} Rxb3 {[%emt 0:00:30]} 28. Qxb3 {[%emt 0:00:30]} h6 {[%emt 0:00:30]} (28... Qc7 $142) 29. dxc5 {[%emt 0:00:58] Strongly threatening Qb7.} Kh7 {[%emt 0:00:30]} 30. Qb7 $36 {[%emt 0:02:22][%mdl 2048] White has strong initiative.} Rc7 {[%emt 0:01:43] [#]} 31. Qa6 {[%emt 0:01:25] Black must now prevent Rb7.} Qe7 $2 {[%emt 0:04:29][%mdl 8192]} (31... Ne4 $16) 32. Rb7 $18 {[%emt 0:00:52][%cal Bb1b7,Bb7c7,Bc7c6][%mdl 32] And now Qxa7 would win. White is clearly winning.} Qxc5+ {[%emt 0:06:56]} 33. Kh2 {[%emt 0:00:14] Active counter play!} Rxc6 {[%emt 0:00:29]} 34. Nxc6 {[%emt 0:02:14]} Bxc6 {[%emt 0:02:10]} 35. Rc7 {[%emt 0:00:30]} Qf2 {[%emt 0:00:30]} 36. Rxc6 {[%emt 0:00:46] Weighted Error Value: White=0.28 (precise) /Black=0.70} ({Not} 36. Qxc6 Ne4 $11) 1-0

[Event "FIDE CB Open 2022"]
[Site "Ceske Budejovice"]
[Date "2022.07.07"]
[Round "7.44"]
[White "Petirova, Iva"]
[Black "Tsifanskaya, Ludmila A"]
[Result "0-1"]
[ECO "B33"]
[WhiteElo "1722"]
[BlackElo "1941"]
[Annotator "TA"]
[PlyCount "81"]
[EventDate "2022.07.01"]
[EventType "swiss"]
[EventCountry "CZE"]
[SourceTitle "playchess.com"]
[Source "ChessBase"]
[SourceQuality "1"]
[TimeControl "40/5400+30:1800+30"]

{[%evp 13,81,27,85,73,86,72,80,86,85,75,76,88,83,41,46,14,19,33,3,0,25,-40,-46,-175,-167,-239,-159,-151,-150,-145,-135,-145,-95,-126,0,-208,-20,-37,-36,-112,-114,-110,-106,-204,-211,-290,-291,-294,-302,-313,-317,-429,-420,-499,-508,-487,-485,-526,-494,-581,-573,-607,-600,-616,-606,-723,-708,-708,-707,-737]} 1. e4 {[%emt 0:00:06]} c5 {[%emt 0:00:04]} 2. Nf3 {[%emt 0:00:10]} Nc6 {[%emt 0:00:10]} 3. d4 {[%emt 0:00:15]} cxd4 {[%emt 0:00:07]} 4. Nxd4 {[%emt 0:00:10]} Qb6 {[%emt 0:00:40]} 5. Nb3 {[%emt 0:00:33]} Nf6 {[%emt 0:00:08]} 6. Nc3 {[%emt 0:00:28]} e6 {[%emt 0:00:08]} 7. Qe2 {[%emt 0:00:52]} d6 {[%emt 0:03:48]} (7... Be7 $11) 8. Be3 $16 {[%emt 0:04:28] B33: Sicilian: Pelikan and Sveshnikov Variations.} Qc7 {[%emt 0:00:09]} (8... Qb4 $2 9. a3 Qxc3+ 10. bxc3 $18) 9. g4 {[%emt 0:03:36]} Be7 {[%emt 0:02:55]} 10. O-O-O {[%emt 0:03:12] White is better.} a6 {[%emt 0:01:36]} 11. g5 {[%emt 0:02:28]} Nd7 {[%emt 0:00:13]} 12. f4 {[%emt 0:01:13]} b5 {[%emt 0:03:45][%cal Bb7b5,Bb5b4][%mdl 32]} 13. f5 {[%emt 0:05:34]} Nde5 {[%emt 0:01:29]} 14. Bh3 {[%emt 0:10:20] [#]} b4 $146 {[%emt 0:09:06]} ({Predecessor:} 14... Nc4 15. Bf4 N6e5 16. Nd2 Qa5 17. Nb3 Qb4 18. Rd4 Nc6 19. Rd3 N6a5 20. Qd1 Bd7 {0-1 (35) Haschemi,S (1607)-Vuckovic,R (1880) Bayern 2019}) 15. Na4 {[%emt 0:01:34]} Rb8 {[%emt 0:01:04] Prevents Nb6.} 16. Rhf1 {[%emt 0:12:34]} g6 {[%emt 0:05:33]} 17. f6 {[%emt 0:12:31]} (17. Kb1 $11) 17... Bf8 $15 {[%emt 0:00:35]} 18. Nd4 {[%emt 0:07:12]} (18. Rf4 $15) 18... h6 $19 {[%emt 0:16:56]} 19. Nf3 {[%emt 0:05:27]} (19. Rf2 $142) 19... Nxf3 {[%emt 0:01:46]} 20. Rxf3 {[%emt 0:01:04]} Ne5 {[%emt 0:00:27]} 21. Rg3 {[%emt 0:02:28]} Bd7 {[%emt 0:10:33]} 22. b3 {[%emt 0:02:44]} Bxa4 {[%emt 0:00:20]} (22... Bb5 $142 23. Qd2 Bxa4 24. bxa4 Nc4) 23. bxa4 $17 {[%emt 0:00:06]} Qa5 {[%emt 0:01:04]} (23... Qc3 $2 24. Ba7 Qc8 25. Bxb8 Qxb8 26. Qxa6 hxg5 27. Bf1 $18) (23... hxg5 $17 {aiming for ...b3.} 24. Bf1 Nd7 25. Bxg5 Nc5) 24. gxh6 $2 {[%emt 0:01:51] [#]} (24. Bf1 $1 $11 {and White stays safe.}) 24... Qxa4 $2 {[%emt 0:00:59]} ({Black should play} 24... Rc8 $1 $19 {...Nc4 is the strong threat.} 25. Rd4 Qc5) 25. Kb1 $11 {[%emt 0:03:05]} Rc8 $36 {[%emt 0:04:17][%mdl 2048] Black has some pressure.} 26. Rd4 {[%emt 0:05:29] White is now going downhill.} ({Better is} 26. Bd4 $1 $15 Nc6 27. Bf1) 26... Bxh6 $17 {[%emt 0:04:33]} 27. Bxh6 {[%emt 0:01:43]} Rxh6 {[%emt 0:00:01]} 28. Rb3 {[%emt 0:01:05]} (28. Bf1 $17) 28... a5 {[%emt 0:01:31]} 29. Qa6 {[%emt 0:03:25][%cal Ra6c8] [#]} Qc6 {[%emt 0:00:27] Chess con chili.} 30. Qxc6+ {[%emt 0:01:28]} Rxc6 {[%emt 0:00:02][%cal Bc8c6,Bc6b6,Bb6b4][%mdl 32]} ({Weaker is} 30... Nxc6 31. Rxd6 Rh4 32. Bf1 $17) 31. Bf1 {[%emt 0:01:14]} Rb6 {[%emt 0:01:30] Inhibits Bb5+.} ({Worse is} 31... Rxh2 32. Bb5 $17) 32. a3 {[%emt 0:01:07]} Rxh2 {[%emt 0:03:17]} 33. Kb2 {[%emt 0:02:46]} Rf2 {[%emt 0:01:13][%csl LRf1,LRf6] Black is clearly winning.} 34. Rd1 {[%emt 0:02:11]} Rxf6 {[%emt 0:02:00]} 35. axb4 {[%emt 0:01:13]} a4 {[%emt 0:00:43]} 36. Rh3 {[%emt 0:01:27]} Rxb4+ {[%emt 0:00:39]} 37. Ka3 {[%emt 0:00:21]} Rxe4 {[%emt 0:00:14]} 38. Bb5+ {[%emt 0:00:21]} Ke7 {[%emt 0:00:13]} 39. Rh8 {[%emt 0:00:42][%csl Gb5][%cal Rh8e8]} Rf3+ {[%emt 0:00:51]} 40. Ka2 {[%emt 0:00:53]} d5 {[%emt 0:01:00]} 41. Rh6 {[%emt 0:31:34] Weighted Error Value: White=0.52/Black=0.22 (precise)} 0-1

[Event "FIDE CB Open 2022"]
[Site "Ceske Budejovice"]
[Date "2022.07.07"]
[Round "7.45"]
[White "Svejda, Karel"]
[Black "Simacek, Vaclav"]
[Result "0-1"]
[ECO "A46"]
[WhiteElo "1619"]
[BlackElo "1856"]
[Annotator "NA RC COMBH"]
[PlyCount "70"]
[EventDate "2022.07.01"]
[EventType "swiss"]
[EventCountry "CZE"]
[SourceTitle "playchess.com"]
[Source "ChessBase"]
[SourceQuality "1"]
[TimeControl "40/5400+30:1800+30"]

1. d4 {[%emt 0:00:27]} Nf6 {[%emt 0:00:15]} 2. Nf3 {[%emt 0:00:06]} e6 {[%emt 0:00:28]} 3. Bf4 {[%emt 0:00:14]} c5 {[%emt 0:00:45]} 4. e3 {[%emt 0:00:06]} Nc6 {[%emt 0:00:51]} 5. Nbd2 {[%emt 0:01:02]} cxd4 {[%emt 0:02:55]} 6. exd4 {[%emt 0:00:09]} d5 {[%emt 0:06:08]} 7. c3 {[%emt 0:01:12]} Qb6 {[%emt 0:05:02]} 8. Qb3 {[%emt 0:01:44]} Nd7 {[%emt 0:02:28]} 9. Bd3 {[%emt 0:04:29]} Be7 {[%emt 0:00:13]} 10. O-O {[%emt 0:01:23]} O-O {[%emt 0:00:30]} 11. Qc2 {[%emt 0:05:06]} h6 {[%emt 0:00:45]} 12. Rfe1 {[%emt 0:02:22]} Nf6 {[%emt 0:00:59]} 13. h3 {[%emt 0:01:37]} Kh8 {[%emt 0:02:15]} 14. Qc1 {[%emt 0:05:15]} Ng8 {[%emt 0:05:04]} 15. Bb1 {[%emt 0:03:41]} f5 {[%emt 0:01:44]} 16. Ne5 {[%emt 0:05:01]} Nxe5 {[%emt 0:00:30]} 17. Bxe5 {[%emt 0:00:49]} Bd7 {[%emt 0:04:54]} 18. g4 {[%emt 0:10:44]} Bf6 {[%emt 0:00:51]} 19. Nf3 {[%emt 0:02:41]} Bxe5 {[%emt 0:06:29]} 20. Nxe5 {[%emt 0:00:02]} Be8 {[%emt 0:00:07]} 21. gxf5 {[%emt 0:06:38]} exf5 {[%emt 0:00:33]} 22. Bd3 {[%emt 0:01:22]} Rd8 {[%emt 0:00:55]} 23. Qc2 {[%emt 0:00:50]} Qf6 {[%emt 0:00:08]} 24. Re3 {[%emt 0:08:06]} f4 {[%emt 0:00:39]} 25. Ng4 {[%emt 0:01:13]} Qh4 {[%emt 0:02:33]} 26. Rf3 {[%emt 0:01:08]} Bh5 {[%emt 0:00:40]} 27. Bf5 {[%emt 0:03:39]} Ne7 {[%emt 0:01:55]} 28. Be6 {[%emt 0:05:42]} Rd6 {[%emt 0:05:49]} 29. Qe2 {[%emt 0:02:01]} Qg5 {[%emt 0:06:26]} 30. Kh2 {[%emt 0:04:35]} Ng6 {[%emt 0:01:03]} 31. Rg1 {[%emt 0:06:15]} Qe7 {[%emt 0:03:30]} 32. Ne5 {[%emt 0:04:41]} Rxe6 {[%emt 0:02:36]} 33. Rxg6 {[%emt 0:00:51]} Rxe5 {[%emt 0:01:31]} 34. dxe5 {[%emt 0:00:31]} Bxg6 {[%emt 0:00:19]} 35. Qd2 {[%emt 0:00:10]} Qxe5 {[%emt 0:00:40]} 0-1